fUSD/lending_fUSD_20260513
["ID","MTS","AMOUNT","RATE_DAILY","PERIOD"]
[422197086,1778680261000,-209.05,0.00037301,2]
[422197084,1778680261000,-256.0,0.00037256,2]
[422197085,1778680261000,-154.35,0.000373,30]
[422197093,1778680261000,-2103.6889,0.00037486,2]
[422197081,1778680261000,-302.33643076,0.00037197,2]
[422197082,1778680261000,-300.0,0.00037197,2]
[422197092,1778680261000,-370.78706255,0.0003747,99]
[422197088,1778680261000,-41618.0,0.00037301,60]
[422197107,1778680261000,-212.149789,0.000376,7]
[422197097,1778680261000,-277235.0,0.000376,30]
[422197096,1778680261000,-94818.22582796,0.000376,2]
[422197098,1778680261000,-583.370005,0.000376,7]
[422197094,1778680261000,-2249.0224,0.000375,60]
[422197099,1778680261000,-583.370005,0.000376,7]
[422197100,1778680261000,-583.370005,0.000376,7]
[422197101,1778680261000,-583.370008,0.000376,7]
[422197102,1778680261000,-151.0,0.000376,7]
[422197104,1778680261000,-212.149793,0.000376,7]
[422197103,1778680261000,-151.0,0.000376,7]
[422197105,1778680261000,-212.149793,0.000376,7]
[422197083,1778680261000,-152.0,0.00037213,8]
[422197095,1778680261000,-7649.32,0.000375,120]
[422197077,1778680261000,-970.56690408,0.00037197,2]
[422197065,1778680261000,-300.4650572,0.00037197,2]
[422197076,1778680261000,-948.75057733,0.00037197,2]
[422197108,1778680261000,-434.612742,0.000376,7]
[422197057,1778680261000,-413.05349174,0.00037197,2]
[422197051,1778680261000,-402.59213632,0.00037197,2]
[422197052,1778680261000,-300.0,0.00037197,2]
[422197053,1778680261000,-948.75057733,0.00037197,2]
[422197054,1778680261000,-1160.65608932,0.00037197,2]
[422197056,1778680261000,-383.85382642,0.00037197,2]
[422197058,1778680261000,-300.54001456,0.00037197,2]
[422197062,1778680261000,-317.48500944,0.00037197,2]
[422197060,1778680261000,-645.99276223,0.00037197,2]
[422197061,1778680261000,-413.38027784,0.00037197,2]
[422197064,1778680261000,-1094.44656272,0.00037197,2]
[422197075,1778680261000,-522.27178844,0.00037197,2]
[422197068,1778680261000,-300.0,0.00037197,2]
[422197059,1778680261000,-618.50224235,0.00037197,2]
[422197066,1778680261000,-527.6022146,0.00037197,2]
[422197067,1778680261000,-725.87349266,0.00037197,2]
[422197069,1778680261000,-948.75057733,0.00037197,2]
[422197070,1778680261000,-592.3220265,0.00037197,2]
[422197072,1778680261000,-704.08855307,0.00037197,2]
[422197073,1778680261000,-357.56470487,0.00037197,2]
[422197071,1778680261000,-366.636345,0.00037197,2]
[422197080,1778680261000,-1149.27904435,0.00037197,2]
[422197079,1778680261000,-435.64354095,0.00037197,2]
[422197074,1778680261000,-725.87349266,0.00037197,2]
[422197078,1778680261000,-948.75057733,0.00037197,2]
[422197063,1778680261000,-300.0,0.00037197,2]
[422197106,1778680261000,-212.149793,0.000376,7]
[422197055,1778680261000,-405.09907634,0.00037197,2]
[422197110,1778680261000,-434.612742,0.000376,7]
[422197143,1778680261000,-823.661579,0.000376,7]
[422197148,1778680261000,-3097.800975,0.000376,7]
[422197142,1778680261000,-823.661573,0.000376,7]
[422197146,1778680261000,-3097.800975,0.000376,7]
[422197151,1778680261000,-467.138516,0.000376,7]
[422197144,1778680261000,-151.0,0.000376,7]
[422197150,1778680261000,-467.138516,0.000376,7]
[422197147,1778680261000,-3097.800975,0.000376,7]
[422197149,1778680261000,-3097.800981,0.000376,7]
[422197145,1778680261000,-151.0,0.000376,7]
[422197161,1778680261000,-151.0,0.000376,7]
[422197154,1778680261000,-151.0,0.000376,7]
[422197141,1778680261000,-795.860586,0.000376,7]
[422197162,1778680261000,-281.055378,0.000376,7]
[422197163,1778680261000,-172.862875,0.000376,7]
[422197156,1778680261000,-411.254446,0.000376,7]
[422197155,1778680261000,-151.0,0.000376,7]
[422197157,1778680261000,-206.95296,0.000376,7]
[422197159,1778680261000,-206.95296,0.000376,7]
[422197158,1778680261000,-411.254446,0.000376,7]
[422197160,1778680261000,-411.254446,0.000376,7]
[422197167,1778680261000,-281.055378,0.000376,7]
[422197164,1778680261000,-411.254447,0.000376,7]
[422197165,1778680261000,-151.0,0.000376,7]
[422197166,1778680261000,-206.95296,0.000376,7]
[422197111,1778680261000,-434.612751,0.000376,7]
[422197152,1778680261000,-467.138516,0.000376,7]
[422197140,1778680261000,-823.661573,0.000376,7]
[422197153,1778680261000,-467.13852,0.000376,7]
[422197135,1778680261000,-151.0,0.000376,7]
[422197109,1778680261000,-434.612742,0.000376,7]
[422197136,1778680261000,-795.860581,0.000376,7]
[422197114,1778680261000,-290.336006,0.000376,7]
[422197113,1778680261000,-290.336006,0.000376,7]
[422197126,1778680261000,-741.13727,0.000376,7]
[422197116,1778680261000,-151.0,0.000376,7]
[422197115,1778680261000,-290.336003,0.000376,7]
[422197117,1778680261000,-151.0,0.000376,7]
[422197122,1778680261000,-2106.68412,0.000376,7]
[422197119,1778680261000,-2106.68412,0.000376,7]
[422197123,1778680261000,-151.0,0.000376,7]
[422197124,1778680261000,-151.0,0.000376,7]
[422197120,1778680261000,-2106.68412,0.000376,7]
[422197125,1778680261000,-955.923743,0.000376,7]
[422197112,1778680261000,-290.336006,0.000376,7]
[422197121,1778680261000,-2106.68412,0.000376,7]
[422197137,1778680261000,-823.661573,0.000376,7]
[422197133,1778680261000,-151.0,0.000376,7]
[422197134,1778680261000,-151.0,0.000376,7]
[422197132,1778680261000,-741.137267,0.000376,7]
[422197118,1778680261000,-151.0,0.000376,7]
[422197131,1778680261000,-955.92375286,0.000376,7]
[422197129,1778680261000,-955.923743,0.000376,7]
[422197130,1778680261000,-741.13727,0.000376,7]
[422197139,1778680261000,-795.860581,0.000376,7]
[422197138,1778680261000,-795.860581,0.000376,7]
[422197128,1778680261000,-741.13727,0.000376,7]
[422197127,1778680261000,-955.923743,0.000376,7]
[422197218,1778680262000,-1000.0,0.000378,7]
[422197200,1778680262000,-1000.0,0.000378,7]
[422197208,1778680262000,-1000.0,0.000378,7]
[422197201,1778680262000,-1000.0,0.000378,7]
[422197204,1778680262000,-1000.0,0.000378,7]
[422197206,1778680262000,-1000.0,0.000378,7]
[422197205,1778680262000,-1000.0,0.000378,7]
[422197199,1778680262000,-1000.0,0.000378,7]
[422197210,1778680262000,-1000.0,0.000378,7]
[422197202,1778680262000,-1000.0,0.000378,7]
[422197203,1778680262000,-1000.0,0.000378,7]
[422197209,1778680262000,-1000.0,0.000378,7]
[422197211,1778680262000,-1000.0,0.000378,7]
[422197214,1778680262000,-1000.0,0.000378,7]
[422197213,1778680262000,-1000.0,0.000378,7]
[422197215,1778680262000,-1000.0,0.000378,7]
[422197217,1778680262000,-1000.0,0.000378,7]
[422197212,1778680262000,-1000.0,0.000378,7]
[422197216,1778680262000,-1000.0,0.000378,7]
[422197219,1778680262000,-1000.0,0.000378,7]
[422197230,1778680262000,-1000.0,0.000378,7]
[422197231,1778680262000,-1000.0,0.000378,7]
[422197220,1778680262000,-1000.0,0.000378,7]
[422197222,1778680262000,-1000.0,0.000378,7]
[422197198,1778680262000,-1000.0,0.000378,7]
[422197207,1778680262000,-1000.0,0.000378,7]
[422197197,1778680262000,-1000.0,0.000378,7]
[422197175,1778680262000,-880.018168,0.000376,7]
[422197194,1778680262000,-1444.0,0.00037753,120]
[422197232,1778680262000,-1000.0,0.000378,7]
[422197170,1778680262000,-281.055378,0.000376,7]
[422197169,1778680262000,-169.490811,0.000376,7]
[422197171,1778680262000,-281.055388,0.000376,7]
[422197172,1778680262000,-880.018168,0.000376,7]
[422197168,1778680262000,-206.952958,0.000376,7]
[422197173,1778680262000,-880.018168,0.000376,7]
[422197174,1778680262000,-151.0,0.000376,7]
[422197187,1778680262000,-1142.714983,0.000376,7]
[422197182,1778680262000,-1339.225352,0.000376,7]
[422197183,1778680262000,-1142.714985,0.000376,7]
[422197186,1778680262000,-1339.225352,0.000376,7]
[422197180,1778680262000,-5584.61794708,0.000376,7]
[422197181,1778680262000,-1142.714985,0.000376,7]
[422197176,1778680262000,-880.018163,0.000376,7]
[422197178,1778680262000,-5584.617943,0.000376,7]
[422197184,1778680262000,-1339.225352,0.000376,7]
[422197177,1778680262000,-5584.617943,0.000376,7]
[422197185,1778680262000,-1142.714985,0.000376,7]
[422197179,1778680262000,-5584.617943,0.000376,7]
[422197188,1778680262000,-1339.22535,0.000376,7]
[422197190,1778680262000,-2227.7007,0.00037613,2]
[422197191,1778680262000,-1000.0,0.00037615,2]
[422197193,1778680262000,-2103.6889,0.00037655,2]
[422197189,1778680262000,-154.519386,0.00037613,7]
[422197192,1778680262000,-1000.0,0.00037615,2]
[422197195,1778680262000,-1000.0,0.000378,7]
[422197196,1778680262000,-1000.0,0.000378,7]
[422197221,1778680262000,-1000.0,0.000378,7]
[422197223,1778680262000,-1000.0,0.000378,7]
[422197224,1778680262000,-1000.0,0.000378,7]
[422197260,1778680262000,-1000.0,0.000378,7]
[422197266,1778680262000,-1000.0,0.000378,7]
[422197268,1778680262000,-1000.0,0.000378,7]
[422197264,1778680262000,-1000.0,0.000378,7]
[422197258,1778680262000,-1000.0,0.000378,7]
[422197263,1778680262000,-1000.0,0.000378,7]
[422197261,1778680262000,-1000.0,0.000378,7]
[422197265,1778680262000,-1000.0,0.000378,7]
[422197267,1778680262000,-1000.0,0.000378,7]
[422197262,1778680262000,-1000.0,0.000378,7]
[422197270,1778680262000,-1000.0,0.000378,7]
[422197280,1778680262000,-200.86501189,0.00038,2]
[422197259,1778680262000,-1000.0,0.000378,7]
[422197269,1778680262000,-1000.0,0.000378,7]
[422197271,1778680262000,-1000.0,0.000378,7]
[422197272,1778680262000,-1000.0,0.000378,7]
[422197273,1778680262000,-1000.0,0.000378,7]
[422197277,1778680262000,-151.0,0.00037897,7]
[422197279,1778680262000,-153.0,0.00038,2]
[422197275,1778680262000,-5000.0,0.00037848,31]
[422197276,1778680262000,-413317.58210801,0.00037897,2]
[422197278,1778680262000,-2103.6889,0.00037993,2]
[422197229,1778680262000,-1000.0,0.000378,7]
[422197282,1778680262000,-1009.7359998,0.00038,5]
[422197283,1778680262000,-12728.85214889,0.00038,2]
[422197284,1778680262000,-1000.0,0.00038,30]
[422197281,1778680262000,-153.15555939,0.00038,2]
[422197257,1778680262000,-1000.0,0.000378,7]
[422197274,1778680262000,-2103.6889,0.00037824,2]
[422197246,1778680262000,-1000.0,0.000378,7]
[422197256,1778680262000,-1000.0,0.000378,7]
[422197226,1778680262000,-1000.0,0.000378,7]
[422197225,1778680262000,-1000.0,0.000378,7]
[422197227,1778680262000,-1000.0,0.000378,7]
[422197234,1778680262000,-1000.0,0.000378,7]
[422197235,1778680262000,-1000.0,0.000378,7]
[422197238,1778680262000,-1000.0,0.000378,7]
[422197233,1778680262000,-1000.0,0.000378,7]
[422197240,1778680262000,-1000.0,0.000378,7]
[422197237,1778680262000,-1000.0,0.000378,7]
[422197236,1778680262000,-1000.0,0.000378,7]
[422197239,1778680262000,-1000.0,0.000378,7]
[422197242,1778680262000,-1000.0,0.000378,7]
[422197228,1778680262000,-1000.0,0.000378,7]
[422197243,1778680262000,-1000.0,0.000378,7]
[422197241,1778680262000,-1000.0,0.000378,7]
[422197253,1778680262000,-1000.0,0.000378,7]
[422197250,1778680262000,-1000.0,0.000378,7]
[422197251,1778680262000,-1000.0,0.000378,7]
[422197254,1778680262000,-1000.0,0.000378,7]
[422197255,1778680262000,-1000.0,0.000378,7]
[422197247,1778680262000,-1000.0,0.000378,7]
[422197248,1778680262000,-875.0,0.000378,7]
[422197245,1778680262000,-1000.0,0.000378,7]
[422197244,1778680262000,-1000.0,0.000378,7]
[422197249,1778680262000,-1000.0,0.000378,7]
[422197252,1778680262000,-1000.0,0.000378,7]
[422197319,1778680263000,-687.12,0.00038356,2]
[422197331,1778680263000,-517.25,0.00038356,2]
[422197309,1778680263000,-687.12,0.00038356,2]
[422197315,1778680263000,-687.12,0.00038356,2]
[422197313,1778680263000,-687.12,0.00038356,2]
[422197314,1778680263000,-687.12,0.00038356,2]
[422197310,1778680263000,-687.12,0.00038356,2]
[422197312,1778680263000,-687.12,0.00038356,2]
[422197311,1778680263000,-687.12,0.00038356,2]
[422197321,1778680263000,-687.12,0.00038356,2]
[422197322,1778680263000,-687.12,0.00038356,2]
[422197333,1778680263000,-517.25,0.00038356,2]
[422197320,1778680263000,-687.12,0.00038356,2]
[422197323,1778680263000,-687.12,0.00038356,2]
[422197326,1778680263000,-687.12,0.00038356,2]
[422197328,1778680263000,-687.12,0.00038356,2]
[422197327,1778680263000,-687.12,0.00038356,2]
[422197324,1778680263000,-687.12,0.00038356,2]
[422197325,1778680263000,-687.12,0.00038356,2]
[422197329,1778680263000,-687.14133843,0.00038356,2]
[422197316,1778680263000,-687.12,0.00038356,2]
[422197332,1778680263000,-517.25,0.00038356,2]
[422197317,1778680263000,-687.12,0.00038356,2]
[422197294,1778680263000,-2002.8,0.00038125,30]
[422197318,1778680263000,-687.12,0.00038356,2]
[422197285,1778680263000,-157.72297697,0.00038012,2]
[422197287,1778680263000,-200.0,0.00038036,6]
[422197286,1778680263000,-41618.0,0.00038018,60]
[422197289,1778680263000,-2227.7007,0.00038077,2]
[422197288,1778680263000,-653.4565,0.00038077,2]
[422197292,1778680263000,-200.0,0.000381,6]
[422197330,1778680263000,-517.25,0.00038356,2]
[422197291,1778680263000,-200.0,0.00038099,6]
[422197293,1778680263000,-570.79180423,0.000381,33]
[422197295,1778680263000,-41927.0,0.00038162,60]
[422197308,1778680263000,-687.12,0.00038356,2]
[422197297,1778680263000,-2103.6889,0.00038162,2]
[422197300,1778680263000,-157.57,0.0003822,60]
[422197304,1778680263000,-174.18846205,0.0003835,120]
[422197305,1778680263000,-151.53,0.00038356,60]
[422197306,1778680263000,-687.12,0.00038356,2]
[422197298,1778680263000,-200.0,0.00038178,2]
[422197303,1778680263000,-2103.6889,0.00038331,2]
[422197296,1778680263000,-41618.0,0.00038162,60]
[422197299,1778680263000,-292.0,0.00038178,2]
[422197302,1778680263000,-175.88953785,0.00038329,120]
[422197307,1778680263000,-687.12,0.00038356,2]
[422197301,1778680263000,-157.72297697,0.00038286,2]
[422197337,1778680263000,-517.25,0.00038356,2]
[422197290,1778680263000,-200.0,0.00038098,6]
[422197336,1778680263000,-517.25,0.00038356,2]
[422197360,1778680263000,-938.36,0.00038356,2]
[422197361,1778680263000,-938.36,0.00038356,2]
[422197370,1778680263000,-938.36,0.00038356,2]
[422197371,1778680263000,-938.36,0.00038356,2]
[422197365,1778680263000,-938.36,0.00038356,2]
[422197362,1778680263000,-938.36,0.00038356,2]
[422197364,1778680263000,-938.36,0.00038356,2]
[422197363,1778680263000,-938.36,0.00038356,2]
[422197372,1778680263000,-938.36,0.00038356,2]
[422197375,1778680263000,-938.36,0.00038356,2]
[422197369,1778680263000,-938.36,0.00038356,2]
[422197376,1778680263000,-938.36,0.00038356,2]
[422197377,1778680263000,-938.36,0.00038356,2]
[422197378,1778680263000,-938.36,0.00038356,2]
[422197379,1778680263000,-938.4374828,0.00038356,2]
[422197384,1778680263000,-500.0,0.00038356,2]
[422197382,1778680263000,-500.0,0.00038356,2]
[422197373,1778680263000,-938.36,0.00038356,2]
[422197383,1778680263000,-500.0,0.00038356,2]
[422197381,1778680263000,-500.0,0.00038356,2]
[422197380,1778680263000,-500.0,0.00038356,2]
[422197385,1778680263000,-500.0,0.00038356,2]
[422197374,1778680263000,-938.36,0.00038356,2]
[422197368,1778680263000,-938.36,0.00038356,2]
[422197338,1778680263000,-498.51907839,0.00038356,2]
[422197366,1778680263000,-938.36,0.00038356,2]
[422197335,1778680263000,-517.25,0.00038356,2]
[422197334,1778680263000,-517.25,0.00038356,2]
[422197339,1778680263000,-818.504498,0.0002,2]
[422197341,1778680263000,-517.25,0.00038356,2]
[422197340,1778680263000,-18.73092161,0.00038356,2]
[422197346,1778680263000,-517.25,0.00038356,2]
[422197367,1778680263000,-938.36,0.00038356,2]
[422197343,1778680263000,-517.25,0.00038356,2]
[422197342,1778680263000,-517.25,0.00038356,2]
[422197344,1778680263000,-517.25,0.00038356,2]
[422197347,1778680263000,-517.25,0.00038356,2]
[422197345,1778680263000,-517.25,0.00038356,2]
[422197357,1778680263000,-938.36,0.00038356,2]
[422197356,1778680263000,-938.36,0.00038356,2]
[422197349,1778680263000,-517.25,0.00038356,2]
[422197351,1778680263000,-517.25,0.00038356,2]
[422197358,1778680263000,-938.36,0.00038356,2]
[422197352,1778680263000,-517.25,0.00038356,2]
[422197359,1778680263000,-938.36,0.00038356,2]
[422197350,1778680263000,-517.25,0.00038356,2]
[422197355,1778680263000,-517.41999252,0.00038356,2]
[422197353,1778680263000,-517.25,0.00038356,2]
[422197354,1778680263000,-517.25,0.00038356,2]
[422197348,1778680263000,-517.25,0.00038356,2]
[422197426,1778680264000,-500.0,0.00038356,2]
[422197421,1778680264000,-500.0,0.00038356,2]
[422197420,1778680264000,-500.0,0.00038356,2]
[422197418,1778680264000,-500.0,0.00038356,2]
[422197414,1778680264000,-500.0,0.00038356,2]
[422197416,1778680264000,-500.0,0.00038356,2]
[422197427,1778680264000,-500.0,0.00038356,2]
[422197417,1778680264000,-500.0,0.00038356,2]
[422197411,1778680264000,-500.0,0.00038356,2]
[422197428,1778680264000,-500.0,0.00038356,2]
[422197424,1778680264000,-500.0,0.00038356,2]
[422197435,1778680264000,-500.0,0.00038356,2]
[422197422,1778680264000,-500.0,0.00038356,2]
[422197425,1778680264000,-500.0,0.00038356,2]
[422197429,1778680264000,-466.85306237,0.00038356,2]
[422197438,1778680264000,-500.0,0.00038356,2]
[422197432,1778680264000,-500.0,0.00038356,2]
[422197430,1778680264000,-500.0,0.00038356,2]
[422197439,1778680264000,-500.0,0.00038356,2]
[422197433,1778680264000,-500.0,0.00038356,2]
[422197431,1778680264000,-500.0,0.00038356,2]
[422197436,1778680264000,-500.0,0.00038356,2]
[422197412,1778680264000,-500.0,0.00038356,2]
[422197423,1778680264000,-500.0,0.00038356,2]
[422197405,1778680264000,-500.0,0.00038356,2]
[422197403,1778680264000,-500.0,0.00038356,2]
[422197415,1778680264000,-500.0,0.00038356,2]
[422197386,1778680264000,-500.0,0.00038356,2]
[422197396,1778680264000,-299.98,0.00038356,7]
[422197387,1778680264000,-500.0,0.00038356,2]
[422197389,1778680264000,-458.37215967,0.00038356,2]
[422197388,1778680264000,-500.0,0.00038356,2]
[422197393,1778680264000,-203.2630987,0.00038356,7]
[422197392,1778680264000,-299.98,0.00038356,7]
[422197391,1778680264000,-299.98,0.00038356,7]
[422197394,1778680264000,-299.98,0.00038356,7]
[422197390,1778680264000,-299.98,0.00038356,7]
[422197395,1778680264000,-299.98,0.00038356,7]
[422197410,1778680264000,-500.0,0.00038356,2]
[422197397,1778680264000,-299.98,0.00038356,7]
[422197401,1778680264000,-500.0,0.00038356,2]
[422197437,1778680264000,-500.0,0.00038356,2]
[422197400,1778680264000,-500.0,0.00038356,2]
[422197399,1778680264000,-299.98,0.00038356,7]
[422197402,1778680264000,-500.0,0.00038356,2]
[422197404,1778680264000,-500.0,0.00038356,2]
[422197406,1778680264000,-500.0,0.00038356,2]
[422197407,1778680264000,-500.0,0.00038356,2]
[422197409,1778680264000,-500.0,0.00038356,2]
[422197408,1778680264000,-500.0,0.00038356,2]
[422197413,1778680264000,-500.0,0.00038356,2]
[422197398,1778680264000,-299.98,0.00038356,7]
[422197451,1778680264000,-500.0,0.00038356,2]
[422197419,1778680264000,-500.0,0.00038356,2]
[422197440,1778680264000,-500.0,0.00038356,2]
[422197465,1778680264000,-300.0,0.00038356,2]
[422197468,1778680264000,-300.0,0.00038356,2]
[422197475,1778680264000,-300.0,0.00038356,2]
[422197470,1778680264000,-300.0,0.00038356,2]
[422197474,1778680264000,-300.0,0.00038356,2]
[422197476,1778680264000,-300.0,0.00038356,2]
[422197477,1778680264000,-159.83884682,0.00038356,2]
[422197484,1778680264000,-151.0,0.00038356,30]
[422197483,1778680264000,-151.0,0.00038356,30]
[422197486,1778680264000,-151.0,0.00038356,30]
[422197481,1778680264000,-151.0,0.00038356,30]
[422197478,1778680264000,-1000.0,0.00038356,7]
[422197488,1778680264000,-151.0,0.00038356,30]
[422197487,1778680264000,-151.0,0.00038356,30]
[422197485,1778680264000,-151.0,0.00038356,30]
[422197480,1778680264000,-932.48183126,0.00038356,7]
[422197479,1778680264000,-1000.0,0.00038356,7]
[422197482,1778680264000,-151.0,0.00038356,30]
[422197489,1778680264000,-157.065728,0.00038356,30]
[422197491,1778680264000,-16779.8314,0.00038482,30]
[422197490,1778680264000,-1000.0,0.00038356,120]
[422197492,1778680264000,-2103.6889,0.00038499,2]
[422197494,1778680264000,-505.76253,0.000385,2]
[422197493,1778680264000,-59503.05605189,0.000385,2]
[422197443,1778680264000,-500.0,0.00038356,2]
[422197469,1778680264000,-300.0,0.00038356,2]
[422197464,1778680264000,-300.0,0.00038356,2]
[422197434,1778680264000,-500.0,0.00038356,2]
[422197466,1778680264000,-300.0,0.00038356,2]
[422197467,1778680264000,-300.0,0.00038356,2]
[422197446,1778680264000,-500.0,0.00038356,2]
[422197442,1778680264000,-500.0,0.00038356,2]
[422197444,1778680264000,-500.0,0.00038356,2]
[422197447,1778680264000,-500.0,0.00038356,2]
[422197449,1778680264000,-500.0,0.00038356,2]
[422197450,1778680264000,-500.0,0.00038356,2]
[422197445,1778680264000,-500.0,0.00038356,2]
[422197448,1778680264000,-500.0,0.00038356,2]
[422197452,1778680264000,-500.0,0.00038356,2]
[422197456,1778680264000,-500.0,0.00038356,2]
[422197462,1778680264000,-645.83476871,0.00038356,2]
[422197441,1778680264000,-500.0,0.00038356,2]
[422197457,1778680264000,-500.0,0.00038356,2]
[422197458,1778680264000,-500.0,0.00038356,2]
[422197454,1778680264000,-500.0,0.00038356,2]
[422197460,1778680264000,-500.0,0.00038356,2]
[422197463,1778680264000,-300.0,0.00038356,2]
[422197453,1778680264000,-500.0,0.00038356,2]
[422197461,1778680264000,-500.0,0.00038356,2]
[422197459,1778680264000,-500.0,0.00038356,2]
[422197471,1778680264000,-300.0,0.00038356,2]
[422197473,1778680264000,-300.0,0.00038356,2]
[422197472,1778680264000,-300.0,0.00038356,2]
[422197455,1778680264000,-288.02930281,0.00038356,2]
[422197534,1778680265000,-504.303818,0.0003903,2]
[422197537,1778680265000,-1581.070536,0.0003903,2]
[422197532,1778680265000,-653.4565,0.00039006,2]
[422197527,1778680265000,-162.98,0.00039,120]
[422197529,1778680265000,-7673.81424184,0.00039,30]
[422197528,1778680265000,-7673.81424186,0.00039,30]
[422197525,1778680265000,-5903.9194493,0.00039,2]
[422197531,1778680265000,-2103.689,0.00039006,2]
[422197526,1778680265000,-1000.02174918,0.00039,2]
[422197530,1778680265000,-7673.81424184,0.00039,30]
[422197533,1778680265000,-2227.7007,0.00039006,2]
[422197541,1778680265000,-10000.0,0.0003904,2]
[422197535,1778680265000,-249032.814616,0.0003903,2]
[422197539,1778680265000,-10000.0,0.0003904,2]
[422197536,1778680265000,-1574.569088,0.0003903,2]
[422197538,1778680265000,-2000.0,0.0003904,2]
[422197544,1778680265000,-227.62219014,0.000391,30]
[422197545,1778680265000,-157.72297697,0.00039108,2]
[422197542,1778680265000,-1258.2042,0.0003904,2]
[422197543,1778680265000,-1145.8104,0.0003904,2]
[422197546,1778680265000,-169.3337599,0.00039144,120]
[422197547,1778680265000,-1000.0,0.00039183,2]
[422197523,1778680265000,-1000.0,0.00039,70]
[422197550,1778680265000,-412.9687174,0.00039262,120]
[422197540,1778680265000,-2000.0,0.0003904,2]
[422197524,1778680265000,-500.14,0.00039,120]
[422197512,1778680265000,-157.72297697,0.00038834,2]
[422197522,1778680265000,-4934.744681,0.00039,90]
[422197549,1778680265000,-151.4242103,0.00039262,120]
[422197496,1778680265000,-184.09,0.00038541,30]
[422197502,1778680265000,-3541.0,0.00038597,2]
[422197498,1778680265000,-157.72297697,0.0003856,2]
[422197506,1778680265000,-2103.6889,0.00038668,2]
[422197500,1778680265000,-152.0,0.00038594,9]
[422197504,1778680265000,-1353.0,0.00038597,2]
[422197501,1778680265000,-926.0,0.00038597,2]
[422197497,1778680265000,-2227.7007,0.00038542,2]
[422197499,1778680265000,-1206.882,0.00038564,52]
[422197503,1778680265000,-625.0,0.00038597,2]
[422197505,1778680265000,-1269.0,0.00038597,2]
[422197508,1778680265000,-1100.0,0.00038721,7]
[422197509,1778680265000,-41618.0,0.00038735,120]
[422197507,1778680265000,-1497.03,0.000387,60]
[422197513,1778680265000,-2103.6889,0.00038837,2]
[422197511,1778680265000,-277235.0,0.000388,30]
[422197510,1778680265000,-346.04884219,0.0003875,120]
[422197518,1778680265000,-153.0,0.00039,30]
[422197516,1778680265000,-152.0,0.00039,30]
[422197514,1778680265000,-2000.0,0.000389,7]
[422197517,1778680265000,-1707.40268815,0.00039,2]
[422197515,1778680265000,-155.0,0.00038997,2]
[422197519,1778680265000,-559.29390069,0.00039,120]
[422197520,1778680265000,-31292.29656827,0.00039,2]
[422197521,1778680265000,-1332.76441182,0.00039,120]
[422197495,1778680265000,-22446.95558355,0.000385,2]
[422197551,1778680265000,-171.3357043,0.00039262,120]
[422197553,1778680265000,-159.0818048,0.00039262,120]
[422197584,1778680265000,-193.59529928,0.00039723,2]
[422197581,1778680265000,-173.65245394,0.00039723,2]
[422197582,1778680265000,-159.96403591,0.00039723,2]